[Event "*** Titled Tuesday Blitz"]
[Site "Chess.com"]
[Date "2020.04.21"]
[Round "4"]
[White "norwaytoadog"]
[Black "HashtagChess"]
[Result "1/2-1/2"]
[WhiteElo "2200"]
[BlackElo "1646"]
[TimeControl "180+1"]
[EndTime "10:41:57 PDT"]
[Termination "Game drawn by stalemate"]

1. e4 {[%clk 0:03:00.9]} 1... c5 {[%clk 0:02:59.1]} 2. Nf3 {[%clk 0:03:00.6]}
2... d6 {[%clk 0:02:58.8]} 3. Bb5+ {[%clk 0:03:00.1]} 3... Bd7 {[%clk
0:02:58.3]} 4. Bxd7+ {[%clk 0:03:00]} 4... Qxd7 {[%clk 0:02:59.2]} 5. O-O {[%clk
0:03:00.1]} 5... g6 {[%clk 0:02:59.2]} 6. Qe2 {[%clk 0:02:55.6]} 6... Bg7 {[%clk
0:02:58.4]} 7. c3 {[%clk 0:02:55.9]} 7... Nc6 {[%clk 0:02:56.1]} 8. Rd1 {[%clk
0:02:53.4]} 8... Nf6 {[%clk 0:02:51.9]} 9. d4 {[%clk 0:02:52.6]} 9... O-O {[%clk
0:02:49.3]} 10. dxc5 {[%clk 0:02:44.9]} 10... Qg4 {[%clk 0:02:33.1]} 11. Nbd2
{[%clk 0:02:18.2]} 11... dxc5 {[%clk 0:02:23.4]} 12. h3 {[%clk 0:02:15.2]} 12...
Qh5 {[%clk 0:02:10.9]} 13. e5 {[%clk 0:01:51.3]} 13... Nd7 {[%clk 0:02:01.2]}
14. e6 {[%clk 0:01:48.7]} 14... Nde5 {[%clk 0:01:53.6]} 15. Qf1 {[%clk
0:01:24.6]} 15... fxe6 {[%clk 0:01:33.7]} 16. Nxe5 {[%clk 0:01:12.4]} 16... Nxe5
{[%clk 0:01:34.6]} 17. Ne4 {[%clk 0:01:06.4]} 17... Nf3+ {[%clk 0:00:51.5]} 18.
gxf3 {[%clk 0:01:01.6]} 18... Rxf3 {[%clk 0:00:52.4]} 19. Ng3 {[%clk 0:00:55]}
19... Rxg3+ {[%clk 0:00:39.6]} 20. fxg3 {[%clk 0:00:54.5]} 20... Rf8 {[%clk
0:00:39.8]} 21. Bf4 {[%clk 0:00:38.9]} 21... g5 {[%clk 0:00:34.2]} 22. Qc4
{[%clk 0:00:33.9]} 22... gxf4 {[%clk 0:00:31.8]} 23. Qxe6+ {[%clk 0:00:33.5]}
23... Kh8 {[%clk 0:00:29.8]} 24. Rf1 {[%clk 0:00:31.2]} 24... f3 {[%clk
0:00:24.9]} 25. Rad1 {[%clk 0:00:27.7]} 25... Qg5 {[%clk 0:00:16]} 26. Qg4
{[%clk 0:00:23.5]} 26... Qe3+ {[%clk 0:00:15.1]} 27. Rf2 {[%clk 0:00:23.3]}
27... Be5 {[%clk 0:00:10]} 28. Rf1 {[%clk 0:00:21.7]} 28... Qd3 {[%clk
0:00:09.2]} 29. Kh2 {[%clk 0:00:20.2]} 29... Rg8 {[%clk 0:00:08.5]} 30. Rxf3
{[%clk 0:00:20.3]} 30... Qd2+ {[%clk 0:00:06.6]} 31. R3f2 {[%clk 0:00:19.5]}
31... Qh6 {[%clk 0:00:06.1]} 32. Qe4 {[%clk 0:00:16.7]} 32... Bxg3+ {[%clk
0:00:05.7]} 33. Kg2 {[%clk 0:00:15.7]} 33... Bxf2+ {[%clk 0:00:06.6]} 34. Kxf2
{[%clk 0:00:15.9]} 34... Qf6+ {[%clk 0:00:06.5]} 35. Ke2 {[%clk 0:00:15.3]}
35... Qg6 {[%clk 0:00:05.7]} 36. Qxg6 {[%clk 0:00:15.2]} 36... Rxg6 {[%clk
0:00:05.2]} 37. Rf8+ {[%clk 0:00:15.1]} 37... Kg7 {[%clk 0:00:04.7]} 38. Re8
{[%clk 0:00:14.8]} 38... Rg2+ {[%clk 0:00:05.4]} 39. Kd3 {[%clk 0:00:14.9]}
39... Rxb2 {[%clk 0:00:06.3]} 40. Rxe7+ {[%clk 0:00:15.2]} 40... Kf6 {[%clk
0:00:06.3]} 41. Rxh7 {[%clk 0:00:14.4]} 41... Rxa2 {[%clk 0:00:06.3]} 42. Rxb7
{[%clk 0:00:14.6]} 42... a5 {[%clk 0:00:06.6]} 43. Kc4 {[%clk 0:00:14.7]} 43...
a4 {[%clk 0:00:06.8]} 44. h4 {[%clk 0:00:14.9]} 44... a3 {[%clk 0:00:06.9]} 45.
h5 {[%clk 0:00:14.8]} 45... Ra1 {[%clk 0:00:07.2]} 46. h6 {[%clk 0:00:14.3]}
46... Kg6 {[%clk 0:00:07.3]} 47. h7 {[%clk 0:00:13.4]} 47... Rh1 {[%clk
0:00:07.9]} 48. Ra7 {[%clk 0:00:13.2]} 48... Rxh7 {[%clk 0:00:07.3]} 49. Rxh7
{[%clk 0:00:12.1]} 49... Kxh7 {[%clk 0:00:08.2]} 50. Kb3 {[%clk 0:00:12.5]}
50... Kg6 {[%clk 0:00:06.4]} 51. Kxa3 {[%clk 0:00:12.9]} 51... Kf6 {[%clk
0:00:06.8]} 52. Kb3 {[%clk 0:00:13]} 52... Ke6 {[%clk 0:00:06.9]} 53. Kc4 {[%clk
0:00:13.4]} 53... Kd6 {[%clk 0:00:06.8]} 54. Kd3 {[%clk 0:00:09.9]} 54... Kd5
{[%clk 0:00:06.8]} 55. c4+ {[%clk 0:00:09.3]} 55... Kc6 {[%clk 0:00:06.2]} 56.
Ke4 {[%clk 0:00:09.4]} 56... Kd6 {[%clk 0:00:06.2]} 57. Kf5 {[%clk 0:00:09.6]}
57... Kc6 {[%clk 0:00:04.4]} 58. Ke6 {[%clk 0:00:10]} 58... Kc7 {[%clk
0:00:03.3]} 59. Kd5 {[%clk 0:00:09.9]} 59... Kd7 {[%clk 0:00:03.4]} 60. Kxc5
{[%clk 0:00:10]} 60... Kc7 {[%clk 0:00:03.9]} 61. Kd5 {[%clk 0:00:10.4]} 61...
Kd7 {[%clk 0:00:04.3]} 62. Kc5 {[%clk 0:00:09.5]} 62... Kc7 {[%clk 0:00:04.6]}
63. Kb5 {[%clk 0:00:10]} 63... Kb7 {[%clk 0:00:04.9]} 64. c5 {[%clk 0:00:10.2]}
64... Kc7 {[%clk 0:00:05]} 65. c6 {[%clk 0:00:10.7]} 65... Kc8 {[%clk
0:00:05.4]} 66. Kb6 {[%clk 0:00:10.9]} 66... Kb8 {[%clk 0:00:05.8]} 67. Kc5
{[%clk 0:00:11.2]} 67... Kc8 {[%clk 0:00:06]} 68. Kd5 {[%clk 0:00:11.6]} 68...
Kc7 {[%clk 0:00:04.2]} 69. Kc5 {[%clk 0:00:11.7]} 69... Kc8 {[%clk 0:00:04.4]}
70. Kd6 {[%clk 0:00:11.5]} 70... Kd8 {[%clk 0:00:04.5]} 71. c7+ {[%clk
0:00:10.3]} 71... Kc8 {[%clk 0:00:04.8]} 72. Kc6 {[%clk 0:00:10.7]} 1/2-1/2

[Event "*** Titled Tuesday Blitz"]
[Site "Chess.com"]
[Date "2020.04.21"]
[Round "4"]
[White "wannabe2700"]
[Black "hypert"]
[Result "0-1"]
[WhiteElo "2664"]
[BlackElo "2516"]
[TimeControl "180+1"]
[EndTime "10:42:02 PDT"]
[Termination "hypert won by checkmate"]

1. b3 {[%clk 0:03:00.9]} 1... e5 {[%clk 0:02:53.7]} 2. Bb2 {[%clk 0:02:58.2]}
2... Nc6 {[%clk 0:02:54.2]} 3. e3 {[%clk 0:02:58.7]} 3... d6 {[%clk 0:02:54.5]}
4. c4 {[%clk 0:02:56.3]} 4... Nf6 {[%clk 0:02:54.2]} 5. Nf3 {[%clk 0:02:54.5]}
5... g6 {[%clk 0:02:54.5]} 6. d4 {[%clk 0:02:54]} 6... exd4 {[%clk 0:02:52.8]}
7. exd4 {[%clk 0:02:39]} 7... Bg7 {[%clk 0:02:52.7]} 8. d5 {[%clk 0:02:38.6]}
8... Ne7 {[%clk 0:02:44]} 9. Bd3 {[%clk 0:02:34.8]} 9... O-O {[%clk 0:02:43.7]}
10. O-O {[%clk 0:02:23.5]} 10... c6 {[%clk 0:02:40]} 11. dxc6 {[%clk 0:02:20.2]}
11... bxc6 {[%clk 0:02:39.4]} 12. Nc3 {[%clk 0:02:14.4]} 12... d5 {[%clk
0:02:39.3]} 13. Na4 {[%clk 0:01:59.8]} 13... dxc4 {[%clk 0:02:12.2]} 14. Bxc4
{[%clk 0:01:59.3]} 14... Ned5 {[%clk 0:02:11.3]} 15. Rc1 {[%clk 0:01:45.6]}
15... Bf5 {[%clk 0:01:51.3]} 16. Nd4 {[%clk 0:01:41.2]} 16... Bd7 {[%clk
0:01:51.2]} 17. Nc5 {[%clk 0:01:37.3]} 17... Nb6 {[%clk 0:01:37.1]} 18. Nxd7
{[%clk 0:01:27]} 18... Qxd7 {[%clk 0:01:20.1]} 19. Nxc6 {[%clk 0:01:26.6]} 19...
Nxc4 {[%clk 0:01:05.8]} 20. Rxc4 {[%clk 0:01:18.8]} 20... Qxd1 {[%clk
0:00:57.3]} 21. Rxd1 {[%clk 0:01:18.5]} 21... Rfe8 {[%clk 0:00:58.2]} 22. g3
{[%clk 0:01:14.4]} 22... Re2 {[%clk 0:00:54.9]} 23. Rb1 {[%clk 0:00:57.9]} 23...
h5 {[%clk 0:00:54.4]} 24. Kf1 {[%clk 0:00:56.2]} 24... Rae8 {[%clk 0:00:47]} 25.
h3 {[%clk 0:00:49.8]} 25... a6 {[%clk 0:00:36.6]} 26. a4 {[%clk 0:00:44.1]}
26... Rd2 {[%clk 0:00:24.8]} 27. Bc3 {[%clk 0:00:38.2]} 27... Rc2 {[%clk
0:00:23.6]} 28. Bxf6 {[%clk 0:00:30.7]} 28... Rxc4 {[%clk 0:00:23.7]} 29. bxc4
{[%clk 0:00:31.6]} 29... Bxf6 {[%clk 0:00:24.2]} 30. Rb6 {[%clk 0:00:32.3]}
30... Re4 {[%clk 0:00:20.6]} 31. Na5 {[%clk 0:00:25.5]} 31... Kg7 {[%clk
0:00:19.8]} 32. Rxa6 {[%clk 0:00:25.3]} 32... Bc3 {[%clk 0:00:18.5]} 33. Nc6
{[%clk 0:00:21.1]} 33... Rxc4 {[%clk 0:00:15.9]} 34. Ke2 {[%clk 0:00:21.5]}
34... h4 {[%clk 0:00:14.3]} 35. Kd3 {[%clk 0:00:20.3]} 35... Rc5 {[%clk
0:00:13.8]} 36. Rb6 {[%clk 0:00:14]} 36... hxg3 {[%clk 0:00:11.7]} 37. fxg3
{[%clk 0:00:13]} 37... Be1 {[%clk 0:00:11.7]} 38. g4 {[%clk 0:00:07.3]} 38...
Rc3+ {[%clk 0:00:11.8]} 39. Ke2 {[%clk 0:00:07.6]} 39... Bg3 {[%clk 0:00:11.3]}
40. a5 {[%clk 0:00:07.4]} 40... Bc7 {[%clk 0:00:11.2]} 41. Ra6 {[%clk
0:00:07.3]} 41... Rxh3 {[%clk 0:00:10.7]} 42. Ra7 {[%clk 0:00:07.6]} 42... Bd6
{[%clk 0:00:08.7]} 43. Nd8 {[%clk 0:00:07.8]} 43... Rh2+ {[%clk 0:00:07.4]} 44.
Kf3 {[%clk 0:00:07.6]} 44... Ra2 {[%clk 0:00:07.2]} 45. Rxf7+ {[%clk 0:00:06.3]}
45... Kh6 {[%clk 0:00:07.6]} 46. Rd7 {[%clk 0:00:06.9]} 46... Ra3+ {[%clk
0:00:06.2]} 47. Ke4 {[%clk 0:00:06.9]} 47... Ra4+ {[%clk 0:00:05.8]} 48. Kd3
{[%clk 0:00:07.1]} 48... Bb4 {[%clk 0:00:06]} 49. Rd4 {[%clk 0:00:05.7]} 49...
Ra3+ {[%clk 0:00:05.1]} 50. Ke4 {[%clk 0:00:05.7]} 50... Bxa5 {[%clk 0:00:05.8]}
51. Nf7+ {[%clk 0:00:06.1]} 51... Kg7 {[%clk 0:00:06.1]} 52. Rd7 {[%clk
0:00:06.9]} 52... Ra4+ {[%clk 0:00:06.4]} 53. Kd5 {[%clk 0:00:07.3]} 53... Kf6
{[%clk 0:00:06.8]} 54. Ne5 {[%clk 0:00:07.5]} 54... Bc3 {[%clk 0:00:05.8]} 55.
Rf7+ {[%clk 0:00:07.3]} 55... Kg5 {[%clk 0:00:06.3]} 56. Nf3+ {[%clk 0:00:07.4]}
56... Kxg4 {[%clk 0:00:06.6]} 57. Nh2+ {[%clk 0:00:06.4]} 57... Kh3 {[%clk
0:00:06.3]} 58. Rf3+ {[%clk 0:00:04]} 58... Kxh2 {[%clk 0:00:05.3]} 59. Rxc3
{[%clk 0:00:04.9]} 59... g5 {[%clk 0:00:05.7]} 60. Ke5 {[%clk 0:00:05.3]} 60...
g4 {[%clk 0:00:05.7]} 61. Rc2+ {[%clk 0:00:04.7]} 61... Kh3 {[%clk 0:00:05.2]}
62. Rc8 {[%clk 0:00:02.1]} 62... g3 {[%clk 0:00:05.5]} 63. Rh8+ {[%clk
0:00:02.1]} 63... Kg2 {[%clk 0:00:06]} 64. Rg8 {[%clk 0:00:02.3]} 64... Ra3
{[%clk 0:00:05.7]} 65. Rg7 {[%clk 0:00:01.7]} 65... Kg1 {[%clk 0:00:05.4]} 66.
Kf4 {[%clk 0:00:02.6]} 66... g2 {[%clk 0:00:05.7]} 67. Re7 {[%clk 0:00:02.2]}
67... Kf1 {[%clk 0:00:05.4]} 68. Rb7 {[%clk 0:00:02.3]} 68... g1=Q {[%clk
0:00:05.2]} 69. Rb1+ {[%clk 0:00:02.9]} 69... Kg2 {[%clk 0:00:05.7]} 70. Rb2+
{[%clk 0:00:03.8]} 70... Kh1 {[%clk 0:00:05.7]} 71. Rb6 {[%clk 0:00:04.7]} 71...
Qxb6 {[%clk 0:00:05]} 72. Ke4 {[%clk 0:00:05.1]} 72... Qb4+ {[%clk 0:00:05.5]}
73. Kd5 {[%clk 0:00:05.8]} 73... Ra5+ {[%clk 0:00:06.4]} 74. Kc6 {[%clk
0:00:06.7]} 74... Rc5+ {[%clk 0:00:06.9]} 75. Kd7 {[%clk 0:00:07.6]} 75... Qd4+
{[%clk 0:00:07.2]} 76. Ke7 {[%clk 0:00:08.5]} 76... Re5+ {[%clk 0:00:08]} 77.
Kf7 {[%clk 0:00:09.4]} 77... Qf4+ {[%clk 0:00:08.6]} 78. Kg8 {[%clk 0:00:10.3]}
78... Rg5+ {[%clk 0:00:09.2]} 79. Kh7 {[%clk 0:00:11.2]} 79... Qh4# {[%clk
0:00:09.8]} 0-1

[Event "*** Titled Tuesday Blitz"]
[Site "Chess.com"]
[Date "2020.04.21"]
[Round "4"]
[White "pooh2012"]
[Black "GM4life"]
[Result "1-0"]
[WhiteElo "2496"]
[BlackElo "2179"]
[TimeControl "180+1"]
[EndTime "10:42:03 PDT"]
[Termination "pooh2012 won by resignation"]

1. e4 {[%clk 0:03:00.9]} 1... e5 {[%clk 0:02:57.2]} 2. Nf3 {[%clk 0:02:55.1]}
2... Nc6 {[%clk 0:02:57.3]} 3. Bc4 {[%clk 0:02:54.7]} 3... Nf6 {[%clk 0:02:57]}
4. d3 {[%clk 0:02:53.8]} 4... Bc5 {[%clk 0:02:56.8]} 5. O-O {[%clk 0:02:51.5]}
5... a6 {[%clk 0:02:57.4]} 6. a4 {[%clk 0:02:50.9]} 6... Ba7 {[%clk 0:02:54.6]}
7. Bg5 {[%clk 0:02:44.8]} 7... h6 {[%clk 0:02:50.6]} 8. Bh4 {[%clk 0:02:41.3]}
8... g5 {[%clk 0:02:49.1]} 9. Bg3 {[%clk 0:02:37.9]} 9... d6 {[%clk 0:02:49]}
10. c3 {[%clk 0:02:29.9]} 10... Be6 {[%clk 0:02:38.8]} 11. Nbd2 {[%clk
0:02:22.7]} 11... Qd7 {[%clk 0:02:37.4]} 12. Re1 {[%clk 0:02:00.4]} 12... O-O-O
{[%clk 0:02:34.2]} 13. b4 {[%clk 0:01:58]} 13... h5 {[%clk 0:02:04]} 14. h4
{[%clk 0:01:46.5]} 14... gxh4 {[%clk 0:01:28.9]} 15. Bxh4 {[%clk 0:01:44.1]}
15... Ng4 {[%clk 0:01:26.5]} 16. b5 {[%clk 0:01:30.9]} 16... Na5 {[%clk
0:01:24.8]} 17. bxa6 {[%clk 0:01:27.6]} 17... Nxc4 {[%clk 0:01:15.8]} 18. axb7+
{[%clk 0:01:27.1]} 18... Kxb7 {[%clk 0:01:15.7]} 19. Nxc4 {[%clk 0:01:22.5]}
19... Rdg8 {[%clk 0:01:11.1]} 20. Rb1+ {[%clk 0:01:12.1]} 20... Ka8 {[%clk
0:01:11.2]} 21. Qb3 {[%clk 0:00:36.6]} 21... Rb8 {[%clk 0:01:09.1]} 22. Qc2
{[%clk 0:00:36.5]} 22... Rhg8 {[%clk 0:01:01.9]} 23. Rxb8+ {[%clk 0:00:33]}
23... Rxb8 {[%clk 0:01:01.3]} 24. Ncd2 {[%clk 0:00:26]} 24... f5 {[%clk
0:00:52.3]} 25. d4 {[%clk 0:00:24.7]} 25... fxe4 {[%clk 0:00:47]} 26. Qxe4+
{[%clk 0:00:19.4]} 26... d5 {[%clk 0:00:47.1]} 27. Qg6 {[%clk 0:00:18.5]} 27...
e4 {[%clk 0:00:46.6]} 28. Ng5 {[%clk 0:00:18.2]} 28... Bf5 {[%clk 0:00:43.7]}
29. Qxh5 {[%clk 0:00:18.3]} 29... Rb2 {[%clk 0:00:37.5]} 30. Nf1 {[%clk
0:00:17.6]} 30... Qxa4 {[%clk 0:00:33.5]} 31. Qf7 {[%clk 0:00:10.3]} 31... Qd7
{[%clk 0:00:19.6]} 32. Qxd7 {[%clk 0:00:09]} 32... Bxd7 {[%clk 0:00:20.5]} 33.
Nf7 {[%clk 0:00:05.6]} 33... c5 {[%clk 0:00:19.1]} 34. dxc5 {[%clk 0:00:05.3]}
34... Bxc5 {[%clk 0:00:19.3]} 35. Ne3 {[%clk 0:00:05.5]} 35... Nxe3 {[%clk
0:00:16.6]} 36. fxe3 {[%clk 0:00:06.4]} 36... Rc2 {[%clk 0:00:16.3]} 37. Bf6
{[%clk 0:00:06.7]} 37... Be6 {[%clk 0:00:12.7]} 38. Ng5 {[%clk 0:00:06.3]} 38...
Bg8 {[%clk 0:00:12.2]} 39. Bd4 {[%clk 0:00:06.5]} 39... Ba3 {[%clk 0:00:09]} 40.
Nh3 {[%clk 0:00:06.3]} 40... Bb2 {[%clk 0:00:08.4]} 41. Rb1 {[%clk 0:00:03.7]}
41... Bxc3 {[%clk 0:00:08.2]} 42. Nf4 {[%clk 0:00:03.3]} 42... Bxd4 {[%clk
0:00:07.9]} 43. exd4 {[%clk 0:00:04.2]} 43... Rd2 {[%clk 0:00:08]} 44. Rb4
{[%clk 0:00:04.5]} 44... e3 {[%clk 0:00:07.9]} 45. Kf1 {[%clk 0:00:05]} 45...
Bh7 {[%clk 0:00:06.8]} 46. g3 {[%clk 0:00:05.4]} 46... Bd3+ {[%clk 0:00:06.7]}
47. Nxd3 {[%clk 0:00:04.5]} 47... Rxd3 {[%clk 0:00:06.9]} 48. Ke2 {[%clk
0:00:05.1]} 48... Ra3 {[%clk 0:00:06.5]} 49. Rb5 {[%clk 0:00:05.5]} 49... Ra2+
{[%clk 0:00:05.5]} 50. Kxe3 {[%clk 0:00:04.5]} 50... Rg2 {[%clk 0:00:05]} 51.
Kf4 {[%clk 0:00:04.7]} 51... Rf2+ {[%clk 0:00:04.8]} 52. Kg4 {[%clk 0:00:05.2]}
52... Rd2 {[%clk 0:00:03.7]} 53. Rxd5 {[%clk 0:00:05.3]} 53... Kb7 {[%clk
0:00:04.3]} 54. Rd6 {[%clk 0:00:04.1]} 54... Kc7 {[%clk 0:00:04.2]} 55. Re6
{[%clk 0:00:04.2]} 55... Rxd4+ {[%clk 0:00:04]} 56. Kf5 {[%clk 0:00:04.6]} 56...
Rd5+ {[%clk 0:00:03.2]} 57. Kf6 {[%clk 0:00:03.6]} 57... Rd4 {[%clk 0:00:02.7]}
58. Kg5 {[%clk 0:00:03.1]} 58... Kd7 {[%clk 0:00:02.2]} 59. Re1 {[%clk
0:00:02.8]} 59... Rd5+ {[%clk 0:00:02.3]} 60. Kh6 {[%clk 0:00:03.1]} 60... Rd6+
{[%clk 0:00:02.5]} 61. Kh5 {[%clk 0:00:03.1]} 61... Rd5+ {[%clk 0:00:02.6]} 62.
Kh4 {[%clk 0:00:03.6]} 62... Rd4+ {[%clk 0:00:02]} 63. g4 {[%clk 0:00:04.1]}
63... Rd3 {[%clk 0:00:01.7]} 64. Kh5 {[%clk 0:00:04.5]} 64... Rd2 {[%clk
0:00:02.5]} 65. Kg6 {[%clk 0:00:04.9]} 65... Kd8 {[%clk 0:00:03]} 66. g5 {[%clk
0:00:05.4]} 66... Rd6+ {[%clk 0:00:03.2]} 67. Kg7 {[%clk 0:00:05.8]} 67... Rd7+
{[%clk 0:00:03.6]} 68. Kh6 {[%clk 0:00:06.3]} 68... Rd6+ {[%clk 0:00:03.8]} 69.
g6 {[%clk 0:00:06.9]} 69... Rd3 {[%clk 0:00:03.5]} 70. Kh7 {[%clk 0:00:07.3]}
70... Rh3+ {[%clk 0:00:03.3]} 71. Kg7 {[%clk 0:00:07.8]} 71... Rg3 {[%clk
0:00:02.7]} 72. Kf7 {[%clk 0:00:07.9]} 72... Kd7 {[%clk 0:00:03.6]} 73. g7
{[%clk 0:00:07.6]} 73... Rf3+ {[%clk 0:00:04]} 74. Kg8 {[%clk 0:00:08.1]} 74...
Rg3 {[%clk 0:00:04.2]} 75. Kh7 {[%clk 0:00:08.5]} 75... Rh3+ {[%clk 0:00:04.4]}
76. Kg6 {[%clk 0:00:08.9]} 76... Rg3+ {[%clk 0:00:04.7]} 77. Kf7 {[%clk
0:00:09.5]} 77... Rf3+ {[%clk 0:00:05.1]} 78. Kg8 {[%clk 0:00:10]} 78... Rg3
{[%clk 0:00:05]} 79. Re4 {[%clk 0:00:10.2]} 79... Kd6 {[%clk 0:00:03.9]} 80. Kf7
{[%clk 0:00:10]} 80... Rf3+ {[%clk 0:00:03.7]} 81. Kg6 {[%clk 0:00:10.1]} 81...
Rg3+ {[%clk 0:00:04.2]} 82. Kf6 {[%clk 0:00:10.2]} 82... Rf3+ {[%clk 0:00:04.1]}
83. Kg5 {[%clk 0:00:10.2]} 83... Rg3+ {[%clk 0:00:04.3]} 84. Rg4 {[%clk
0:00:10.4]} 84... Rxg4+ {[%clk 0:00:04.2]} 85. Kxg4 {[%clk 0:00:10.7]} 85... Ke6
{[%clk 0:00:04.8]} 86. g8=Q+ {[%clk 0:00:11]} 86... Kf6 {[%clk 0:00:05.5]} 87.
Qg5+ {[%clk 0:00:11.1]} 87... Kf7 {[%clk 0:00:05.2]} 88. Qh6 {[%clk 0:00:11.2]}
88... Kg8 {[%clk 0:00:04.6]} 89. Qf6 {[%clk 0:00:11.3]} 89... Kh7 {[%clk
0:00:04.5]} 90. Kg5 {[%clk 0:00:11.7]} 90... Kg8 {[%clk 0:00:04.3]} 91. Qe7
{[%clk 0:00:11.9]} 91... Kh8 {[%clk 0:00:04.3]} 92. Kg6 {[%clk 0:00:12.5]} 1-0

[Event "*** Titled Tuesday Blitz"]
[Site "Chess.com"]
[Date "2020.04.21"]
[Round "4"]
[White "LittlePeasant"]
[Black "regular_legs"]
[Result "0-1"]
[WhiteElo "2771"]
[BlackElo "2558"]
[TimeControl "180+1"]
[EndTime "10:42:06 PDT"]
[Termination "regular_legs won by resignation"]

1. d4 {[%clk 0:03:00.9]} 1... e6 {[%clk 0:02:59.4]} 2. c4 {[%clk 0:03:01.8]}
2... d5 {[%clk 0:02:58.9]} 3. Nc3 {[%clk 0:03:01.8]} 3... a6 {[%clk 0:02:58.8]}
4. cxd5 {[%clk 0:03:00.4]} 4... exd5 {[%clk 0:02:59.7]} 5. Bf4 {[%clk
0:03:01.1]} 5... c6 {[%clk 0:02:59.1]} 6. Nf3 {[%clk 0:02:59.9]} 6... Bd6 {[%clk
0:02:57.7]} 7. Ne5 {[%clk 0:02:44]} 7... Ne7 {[%clk 0:02:53.7]} 8. e3 {[%clk
0:02:43.2]} 8... O-O {[%clk 0:02:42]} 9. Be2 {[%clk 0:02:43.4]} 9... f6 {[%clk
0:02:40.3]} 10. Nd3 {[%clk 0:02:43.2]} 10... Bf5 {[%clk 0:02:37.4]} 11. Bxd6
{[%clk 0:02:41]} 11... Qxd6 {[%clk 0:02:35.7]} 12. O-O {[%clk 0:02:41]} 12...
Nd7 {[%clk 0:02:34]} 13. Rc1 {[%clk 0:02:40.7]} 13... Rfe8 {[%clk 0:02:28.8]}
14. Qb3 {[%clk 0:02:39.3]} 14... Rab8 {[%clk 0:02:26.9]} 15. Rfe1 {[%clk
0:02:34.8]} 15... Kh8 {[%clk 0:02:13.4]} 16. Na4 {[%clk 0:02:26]} 16... Bxd3
{[%clk 0:01:50.7]} 17. Bxd3 {[%clk 0:02:26.2]} 17... Nc8 {[%clk 0:01:50.9]} 18.
Bf5 {[%clk 0:02:21.3]} 18... Ne7 {[%clk 0:01:38.7]} 19. Bxd7 {[%clk 0:02:10.9]}
19... Qxd7 {[%clk 0:01:39.6]} 20. Nc5 {[%clk 0:02:10.3]} 20... Qc8 {[%clk
0:01:38.4]} 21. Qa4 {[%clk 0:01:33.6]} 21... Nf5 {[%clk 0:01:36.2]} 22. h3
{[%clk 0:01:29.1]} 22... Nd6 {[%clk 0:01:35.7]} 23. Nd3 {[%clk 0:01:22.5]} 23...
Qf5 {[%clk 0:01:33.2]} 24. Qc2 {[%clk 0:01:18.4]} 24... Re7 {[%clk 0:01:30]} 25.
Nc5 {[%clk 0:01:13.4]} 25... Qg5 {[%clk 0:01:25.4]} 26. Qe2 {[%clk 0:01:06.4]}
26... Rbe8 {[%clk 0:01:24.4]} 27. Qg4 {[%clk 0:01:02.4]} 27... Qh6 {[%clk
0:01:22.4]} 28. a4 {[%clk 0:00:48.8]} 28... Rd8 {[%clk 0:01:13.8]} 29. Red1
{[%clk 0:00:43.7]} 29... Rde8 {[%clk 0:01:13.6]} 30. Rd3 {[%clk 0:00:43.2]}
30... Qg6 {[%clk 0:00:59.4]} 31. Qxg6 {[%clk 0:00:41.9]} 31... hxg6 {[%clk
0:01:00.3]} 32. Rb3 {[%clk 0:00:42.6]} 32... Kg8 {[%clk 0:00:58.9]} 33. Rb6
{[%clk 0:00:37.6]} 33... Kf7 {[%clk 0:00:57.9]} 34. h4 {[%clk 0:00:37.9]} 34...
Rh8 {[%clk 0:00:50.4]} 35. g3 {[%clk 0:00:37.9]} 35... Rc8 {[%clk 0:00:47.2]}
36. Kg2 {[%clk 0:00:38.2]} 36... Rcc7 {[%clk 0:00:46.8]} 37. Rb3 {[%clk
0:00:36.3]} 37... Rc8 {[%clk 0:00:46.5]} 38. Rbc3 {[%clk 0:00:36.3]} 38... Rh8
{[%clk 0:00:45]} 39. Rb3 {[%clk 0:00:36]} 39... Rc8 {[%clk 0:00:44.7]} 40. Kf3
{[%clk 0:00:35.2]} 40... Rh8 {[%clk 0:00:44]} 41. Rd1 {[%clk 0:00:34.7]} 41...
Rhe8 {[%clk 0:00:43.8]} 42. Rdd3 {[%clk 0:00:33.2]} 42... Rc8 {[%clk 0:00:43.6]}
43. Rb6 {[%clk 0:00:31.8]} 43... Rcc7 {[%clk 0:00:43.8]} 44. Kg2 {[%clk
0:00:29.4]} 44... Ke8 {[%clk 0:00:43.8]} 45. Rbb3 {[%clk 0:00:23.3]} 45... Kd8
{[%clk 0:00:43.9]} 46. f3 {[%clk 0:00:22.4]} 46... Kc8 {[%clk 0:00:43.6]} 47.
Kf2 {[%clk 0:00:22.7]} 47... Re8 {[%clk 0:00:42.9]} 48. Rd1 {[%clk 0:00:22.2]}
48... Rce7 {[%clk 0:00:43.1]} 49. Rc3 {[%clk 0:00:22.7]} 49... Nc4 {[%clk
0:00:35.4]} 50. e4 {[%clk 0:00:16.9]} 50... Nxb2 {[%clk 0:00:35.1]} 51. Rb1
{[%clk 0:00:12.8]} 51... Nc4 {[%clk 0:00:34.9]} 52. Re1 {[%clk 0:00:01.5]} 52...
Kc7 {[%clk 0:00:33.5]} 53. Re2 {[%clk 0:00:01.8]} 53... a5 {[%clk 0:00:32.6]}
54. Re1 {[%clk 0:00:01.9]} 54... b6 {[%clk 0:00:32.5]} 55. Nd3 {[%clk
0:00:01.9]} 55... Kb7 {[%clk 0:00:32]} 56. Nf4 {[%clk 0:00:02]} 56... Rd7 {[%clk
0:00:25.4]} 57. Nxg6 {[%clk 0:00:02.2]} 57... Nb2 {[%clk 0:00:25.2]} 58. exd5
{[%clk 0:00:01.9]} 58... Rxe1 {[%clk 0:00:24.9]} 59. Kxe1 {[%clk 0:00:02.8]}
59... Rxd5 {[%clk 0:00:25.6]} 60. Re3 {[%clk 0:00:03]} 60... Kc7 {[%clk
0:00:23.8]} 61. Re7+ {[%clk 0:00:02.6]} 61... Rd7 {[%clk 0:00:23.9]} 62. Re8
{[%clk 0:00:02.8]} 62... Nxa4 {[%clk 0:00:23.7]} 63. Nf4 {[%clk 0:00:03.2]}
63... Nc3 {[%clk 0:00:22.6]} 64. Kd2 {[%clk 0:00:03.1]} 64... Nd5 {[%clk
0:00:22.6]} 65. Ne6+ {[%clk 0:00:03.5]} 65... Kd6 {[%clk 0:00:22.6]} 66. Nf8
{[%clk 0:00:04.4]} 66... Re7 {[%clk 0:00:21.7]} 67. Ra8 {[%clk 0:00:05]} 67...
Re3 {[%clk 0:00:12.8]} 68. h5 {[%clk 0:00:02.1]} 68... Rxf3 {[%clk 0:00:12.6]}
69. Ra7 {[%clk 0:00:02.5]} 69... Rxg3 {[%clk 0:00:12.1]} 70. Ng6 {[%clk
0:00:03.4]} 70... Rg5 {[%clk 0:00:07.7]} 71. Rxg7 {[%clk 0:00:03.3]} 71... Nf4
{[%clk 0:00:05.2]} 72. Nf8 {[%clk 0:00:04.2]} 72... Rxg7 {[%clk 0:00:05]} 73. h6
{[%clk 0:00:04.7]} 73... Rf7 {[%clk 0:00:05]} 74. h7 {[%clk 0:00:05.6]} 74...
Rxf8 {[%clk 0:00:05.1]} 75. Ke3 {[%clk 0:00:05.2]} 75... Rh8 {[%clk 0:00:06]}
0-1